[Event "GrandPrix_29.05"]
[Site "Chess.com"]
[Date "2020.05.29"]
[Round "8"]
[White "madamDD"]
[Black "Herracek"]
[Result "1-0"]
[WhiteElo "2458"]
[BlackElo "2391"]
[TimeControl "600+2"]
[EndTime "12:47:55 PDT"]
[Termination "madamDD won by resignation"]

1. e4 {[%clk 0:10:01.9]} 1... c5 {[%clk 0:10:00.7]} 2. Nc3 {[%clk 0:09:51.1]}
2... Nc6 {[%clk 0:10:01.5]} 3. Bb5 {[%clk 0:09:50.7]} 3... Nd4 {[%clk
0:10:01.7]} 4. Nf3 {[%clk 0:09:50.9]} 4... Nxb5 {[%clk 0:10:02.4]} 5. Nxb5
{[%clk 0:09:51.5]} 5... g6 {[%clk 0:10:03.8]} 6. d4 {[%clk 0:09:51]} 6... Bg7
{[%clk 0:10:04.8]} 7. e5 {[%clk 0:09:46.2]} 7... Qa5+ {[%clk 0:10:01.7]} 8. Nc3
{[%clk 0:09:46.4]} 8... cxd4 {[%clk 0:10:02.6]} 9. Qxd4 {[%clk 0:09:46.8]} 9...
Nh6 {[%clk 0:10:01.2]} 10. Bxh6 {[%clk 0:07:18.7]} 10... Bxh6 {[%clk 0:10:01.1]}
11. e6 {[%clk 0:07:19.1]} 11... f6 {[%clk 0:10:01.5]} 12. exd7+ {[%clk 0:07:15]}
12... Bxd7 {[%clk 0:10:02]} 13. O-O {[%clk 0:07:12.1]} 13... Bc6 {[%clk
0:09:42.8]} 14. Rfe1 {[%clk 0:06:37.8]} 14... Rd8 {[%clk 0:09:17.1]} 15. Qxf6
{[%clk 0:06:27]} 15... Kd7 {[%clk 0:09:09.4]} 16. Ne5+ {[%clk 0:06:02.8]} 16...
Kc8 {[%clk 0:09:05.8]} 17. Nxc6 {[%clk 0:05:56.8]} 17... bxc6 {[%clk 0:09:04]}
18. Qxc6+ {[%clk 0:05:55.7]} 18... Kb8 {[%clk 0:09:04.9]} 19. Rxe7 {[%clk
0:05:47.8]} 1-0

[Event "GrandPrix_29.05"]
[Site "Chess.com"]
[Date "2020.05.29"]
[Round "8"]
[White "GM_RobertoMogranzini"]
[Black "ninullia"]
[Result "0-1"]
[WhiteElo "2131"]
[BlackElo "2364"]
[TimeControl "600+2"]
[EndTime "12:48:07 PDT"]
[Termination "ninullia won by resignation"]

1. c4 {[%clk 0:10:01.2]} 1... e5 {[%clk 0:10:00.4]} 2. g3 {[%clk 0:10:02.2]}
2... Nc6 {[%clk 0:09:58]} 3. Bg2 {[%clk 0:10:03]} 3... g6 {[%clk 0:09:57.8]} 4.
Nc3 {[%clk 0:10:03.7]} 4... Bg7 {[%clk 0:09:56.9]} 5. e4 {[%clk 0:10:04.5]} 5...
Nge7 {[%clk 0:09:56.6]} 6. Nge2 {[%clk 0:10:05.5]} 6... O-O {[%clk 0:09:58.1]}
7. O-O {[%clk 0:10:06.6]} 7... d6 {[%clk 0:09:59.8]} 8. d3 {[%clk 0:10:07.7]}
8... Bg4 {[%clk 0:09:56.9]} 9. f3 {[%clk 0:10:07.5]} 9... Be6 {[%clk 0:09:57.5]}
10. Nd5 {[%clk 0:10:08.3]} 10... h6 {[%clk 0:09:56.2]} 11. Be3 {[%clk
0:10:09.1]} 11... f5 {[%clk 0:09:56.7]} 12. Qd2 {[%clk 0:10:09.9]} 12... Kh7
{[%clk 0:09:56.8]} 13. Rac1 {[%clk 0:10:07.7]} 13... Nd4 {[%clk 0:09:53.8]} 14.
Bxd4 {[%clk 0:09:11.7]} 14... exd4 {[%clk 0:09:52.3]} 15. f4 {[%clk 0:09:00.8]}
15... c6 {[%clk 0:09:35.9]} 16. Nxe7 {[%clk 0:08:59.1]} 16... Qxe7 {[%clk
0:09:37.8]} 17. b4 {[%clk 0:08:42.8]} 17... fxe4 {[%clk 0:09:25.9]} 18. dxe4
{[%clk 0:08:28.5]} 18... c5 {[%clk 0:09:25.4]} 19. Qd3 {[%clk 0:08:10.5]} 19...
b5 {[%clk 0:09:02.4]} 20. cxb5 {[%clk 0:07:45.9]} 20... c4 {[%clk 0:08:29.1]}
21. Rxc4 {[%clk 0:07:43.1]} 21... Bxc4 {[%clk 0:08:27.9]} 22. Qxc4 {[%clk
0:07:45]} 22... Rac8 {[%clk 0:08:29.4]} 23. Qd3 {[%clk 0:07:38.7]} 23... Qc7
{[%clk 0:08:19.6]} 24. Nxd4 {[%clk 0:07:27.7]} 24... Qb6 {[%clk 0:08:03.6]} 25.
Rd1 {[%clk 0:07:26.2]} 25... Bxd4+ {[%clk 0:07:53.2]} 26. Qxd4 {[%clk
0:07:26.5]} 26... Rc1 {[%clk 0:07:54.8]} 0-1

[Event "GrandPrix_29.05"]
[Site "Chess.com"]
[Date "2020.05.29"]
[Round "8"]
[White "bratkoo"]
[Black "Gareth-Bale11"]
[Result "0-1"]
[WhiteElo "2189"]
[BlackElo "2419"]
[TimeControl "600+2"]
[EndTime "12:48:38 PDT"]
[Termination "Gareth-Bale11 won by resignation"]

1. e4 {[%clk 0:10:01.9]} 1... c5 {[%clk 0:09:57.9]} 2. Nf3 {[%clk 0:10:02.2]}
2... d6 {[%clk 0:09:58.9]} 3. d4 {[%clk 0:10:01.9]} 3... cxd4 {[%clk 0:10:00.1]}
4. Nxd4 {[%clk 0:10:03.6]} 4... Nf6 {[%clk 0:10:01]} 5. Nc3 {[%clk 0:10:05.2]}
5... a6 {[%clk 0:10:02.3]} 6. h3 {[%clk 0:10:06.8]} 6... e5 {[%clk 0:10:02.1]}
7. Nf3 {[%clk 0:10:08]} 7... Be7 {[%clk 0:10:01]} 8. Bg5 {[%clk 0:10:09.2]} 8...
Be6 {[%clk 0:09:59.7]} 9. Be2 {[%clk 0:10:09.5]} 9... Nbd7 {[%clk 0:09:59.2]}
10. O-O {[%clk 0:10:10.1]} 10... O-O {[%clk 0:09:59.4]} 11. a4 {[%clk
0:10:04.4]} 11... Rc8 {[%clk 0:09:57]} 12. Bxf6 {[%clk 0:10:04]} 12... Nxf6
{[%clk 0:09:55.6]} 13. a5 {[%clk 0:09:35.4]} 13... Rc5 {[%clk 0:09:51.3]} 14.
Qd2 {[%clk 0:09:11.2]} 14... Rxa5 {[%clk 0:09:29.9]} 15. Rad1 {[%clk 0:09:11.5]}
15... Rc5 {[%clk 0:09:26.2]} 16. Qe3 {[%clk 0:09:10.1]} 16... Qc7 {[%clk
0:09:26.8]} 17. Nd2 {[%clk 0:09:03.5]} 17... b5 {[%clk 0:09:03.2]} 18. Nb3
{[%clk 0:08:56.2]} 18... Rc6 {[%clk 0:09:00.8]} 19. Bd3 {[%clk 0:08:49.2]} 19...
g6 {[%clk 0:08:35.8]} 20. Ra1 {[%clk 0:08:38.9]} 20... Rc8 {[%clk 0:08:15.6]}
21. Na5 {[%clk 0:08:21.7]} 21... Rb6 {[%clk 0:08:10.2]} 22. Ne2 {[%clk
0:08:10.4]} 22... d5 {[%clk 0:08:08.2]} 23. exd5 {[%clk 0:08:11.3]} 23... Nxd5
{[%clk 0:08:10.1]} 24. Qd2 {[%clk 0:08:07.5]} 24... Rd8 {[%clk 0:08:05.9]} 25.
c3 {[%clk 0:07:56.4]} 25... Rbd6 {[%clk 0:07:52.4]} 26. Bc2 {[%clk 0:07:39.2]}
26... Nf4 {[%clk 0:07:41.6]} 27. Qe3 {[%clk 0:07:37.6]} 27... Nxe2+ {[%clk
0:07:33.7]} 28. Qxe2 {[%clk 0:07:38.5]} 28... Rd2 {[%clk 0:07:35.4]} 29. Qe4
{[%clk 0:07:39.7]} 29... Bd5 {[%clk 0:07:27.9]} 0-1

[Event "GrandPrix_29.05"]
[Site "Chess.com"]
[Date "2020.05.29"]
[Round "8"]
[White "grunbergmihai"]
[Black "anesar92"]
[Result "0-1"]
[WhiteElo "2388"]
[BlackElo "2447"]
[TimeControl "600+2"]
[EndTime "12:49:07 PDT"]
[Termination "anesar92 won by resignation"]

1. Nf3 {[%clk 0:10:01.9]} 1... c5 {[%clk 0:10:00.1]} 2. c4 {[%clk 0:09:54.4]}
2... Nc6 {[%clk 0:10:00.5]} 3. d4 {[%clk 0:09:48.2]} 3... cxd4 {[%clk
0:10:00.7]} 4. Nxd4 {[%clk 0:09:48.3]} 4... g6 {[%clk 0:10:01.6]} 5. e4 {[%clk
0:09:48.4]} 5... Nf6 {[%clk 0:09:45.1]} 6. Nc3 {[%clk 0:09:48.6]} 6... Nxd4
{[%clk 0:09:45.5]} 7. Qxd4 {[%clk 0:09:49.1]} 7... d6 {[%clk 0:09:46.9]} 8. Be2
{[%clk 0:09:45.8]} 8... Bg7 {[%clk 0:09:47.9]} 9. Be3 {[%clk 0:09:19.9]} 9...
O-O {[%clk 0:09:48.4]} 10. Qd2 {[%clk 0:09:20]} 10... a5 {[%clk 0:09:49.6]} 11.
Rc1 {[%clk 0:09:19.8]} 11... a4 {[%clk 0:09:49.6]} 12. f3 {[%clk 0:09:15.4]}
12... Qa5 {[%clk 0:09:48.4]} 13. Nb5 {[%clk 0:08:29.3]} 13... Qxd2+ {[%clk
0:09:34.8]} 14. Kxd2 {[%clk 0:08:29.3]} 14... Nd7 {[%clk 0:09:32.9]} 15. Nc7
{[%clk 0:08:11.4]} 15... Ra5 {[%clk 0:09:12]} 16. b4 {[%clk 0:07:37]} 16... axb3
{[%clk 0:09:10]} 17. axb3 {[%clk 0:07:38.2]} 17... Nc5 {[%clk 0:08:55.5]} 18.
Bxc5 {[%clk 0:07:12.7]} 18... dxc5 {[%clk 0:08:46.5]} 19. Nd5 {[%clk 0:07:08]}
19... e6 {[%clk 0:08:40.4]} 20. Ne7+ {[%clk 0:07:06.7]} 20... Kh8 {[%clk
0:08:41.1]} 21. Nxc8 {[%clk 0:07:06.3]} 21... Bh6+ {[%clk 0:08:34.9]} 22. Kc2
{[%clk 0:06:50.2]} 22... Bxc1 {[%clk 0:08:27]} 23. Nd6 {[%clk 0:06:32.8]} 23...
Bf4 {[%clk 0:07:47.2]} 0-1

[Event "GrandPrix_29.05"]
[Site "Chess.com"]
[Date "2020.05.29"]
[Round "8"]
[White "vpantev"]
[Black "mishanick"]
[Result "0-1"]
[WhiteElo "2781"]
[BlackElo "2974"]
[TimeControl "600+2"]
[EndTime "12:49:26 PDT"]
[Termination "mishanick won by resignation"]

1. d4 {[%clk 0:10:01.9]} 1... Nf6 {[%clk 0:10:00.8]} 2. Nf3 {[%clk 0:10:02.7]}
2... d5 {[%clk 0:09:59.8]} 3. Bf4 {[%clk 0:10:03]} 3... c5 {[%clk 0:10:00.7]} 4.
c3 {[%clk 0:09:59.2]} 4... e6 {[%clk 0:09:54.2]} 5. e3 {[%clk 0:09:58.8]} 5...
Bd6 {[%clk 0:09:54.6]} 6. Bg3 {[%clk 0:09:53.4]} 6... O-O {[%clk 0:09:54.8]} 7.
Nbd2 {[%clk 0:09:54.3]} 7... Qc7 {[%clk 0:09:55.7]} 8. Bd3 {[%clk 0:09:46.6]}
8... Nbd7 {[%clk 0:09:55.6]} 9. O-O {[%clk 0:09:45.2]} 9... e5 {[%clk
0:09:52.8]} 10. dxe5 {[%clk 0:09:44.2]} 10... Nxe5 {[%clk 0:09:54.7]} 11. Nxe5
{[%clk 0:09:41.4]} 11... Bxe5 {[%clk 0:09:56.6]} 12. Nf3 {[%clk 0:09:41.6]}
12... Bxg3 {[%clk 0:09:56.7]} 13. hxg3 {[%clk 0:09:42.1]} 13... Bg4 {[%clk
0:09:58]} 14. Qc2 {[%clk 0:09:40.4]} 14... Rfe8 {[%clk 0:09:46.4]} 15. c4 {[%clk
0:09:23.9]} 15... h6 {[%clk 0:09:07.2]} 16. cxd5 {[%clk 0:08:49.2]} 16... Nxd5
{[%clk 0:09:07.6]} 17. a3 {[%clk 0:08:44.3]} 17... Rad8 {[%clk 0:09:03]} 18. Be2
{[%clk 0:08:41.2]} 18... Qe7 {[%clk 0:08:24.3]} 19. Qa4 {[%clk 0:08:39.8]} 19...
Bh5 {[%clk 0:07:57.4]} 20. Rfd1 {[%clk 0:08:40.5]} 20... b6 {[%clk 0:07:10.9]}
21. Rac1 {[%clk 0:08:40.9]} 21... Nxe3 {[%clk 0:06:24.9]} 22. Rxd8 {[%clk
0:08:36.7]} 22... Rxd8 {[%clk 0:06:22.7]} 23. fxe3 {[%clk 0:08:36.4]} 23...
Qxe3+ {[%clk 0:06:22.4]} 24. Kh2 {[%clk 0:08:32.4]} 24... Qxc1 {[%clk
0:06:22.2]} 25. Qxa7 {[%clk 0:08:33.1]} 25... Qxb2 {[%clk 0:06:21.2]} 26. Bc4
{[%clk 0:08:31.2]} 26... Qf6 {[%clk 0:06:15.3]} 27. Qc7 {[%clk 0:08:15.4]} 27...
Bxf3 {[%clk 0:06:14.1]} 28. Bxf7+ {[%clk 0:08:11.5]} 28... Kf8 {[%clk
0:06:08.5]} 29. gxf3 {[%clk 0:08:09.1]} 29... Rd2+ {[%clk 0:06:07.6]} 30. Kh3
{[%clk 0:08:10.3]} 30... Qf5+ {[%clk 0:06:07]} 31. g4 {[%clk 0:08:08.3]} 31...
Qxf3+ {[%clk 0:06:07.4]} 32. Qg3 {[%clk 0:08:08.9]} 32... Qh1+ {[%clk
0:06:07.9]} 0-1

[Event "GrandPrix_29.05"]
[Site "Chess.com"]
[Date "2020.05.29"]
[Round "8"]
[White "Spartakus1975"]
[Black "mishikomchedlishvili"]
[Result "1-0"]
[WhiteElo "2612"]
[BlackElo "2370"]
[TimeControl "600+2"]
[EndTime "12:49:44 PDT"]
[Termination "Spartakus1975 won by resignation"]

1. e4 {[%clk 0:10:01.9]} 1... c5 {[%clk 0:09:58.8]} 2. c3 {[%clk 0:10:01.5]}
2... Nf6 {[%clk 0:09:55.7]} 3. e5 {[%clk 0:10:01.8]} 3... Nd5 {[%clk 0:09:57.4]}
4. Nf3 {[%clk 0:10:02.7]} 4... e6 {[%clk 0:09:55.8]} 5. d4 {[%clk 0:10:03.5]}
5... cxd4 {[%clk 0:09:56.8]} 6. cxd4 {[%clk 0:10:05.1]} 6... b6 {[%clk
0:09:56.1]} 7. Bc4 {[%clk 0:10:00.7]} 7... Bb7 {[%clk 0:09:53.6]} 8. O-O {[%clk
0:09:56.4]} 8... Na6 {[%clk 0:09:45.8]} 9. Nc3 {[%clk 0:08:52.6]} 9... Nac7
{[%clk 0:09:44.4]} 10. Ne4 {[%clk 0:08:47.8]} 10... d6 {[%clk 0:09:08.1]} 11.
Nfg5 {[%clk 0:07:39.4]} 11... h6 {[%clk 0:08:54.7]} 12. Qa4+ {[%clk 0:07:11.1]}
12... Qd7 {[%clk 0:07:37.6]} 13. Qxd7+ {[%clk 0:07:02.8]} 13... Kxd7 {[%clk
0:07:38.3]} 14. Nxf7 {[%clk 0:07:02.4]} 14... Rg8 {[%clk 0:07:39.4]} 15. exd6
{[%clk 0:06:45.6]} 15... b5 {[%clk 0:06:19.1]} 16. Be2 {[%clk 0:06:36.9]} 16...
Ke8 {[%clk 0:06:15.6]} 17. Ne5 {[%clk 0:06:32.3]} 1-0

[Event "GrandPrix_29.05"]
[Site "Chess.com"]
[Date "2020.05.29"]
[Round "8"]
[White "HElissalt"]
[Black "Arasvard"]
[Result "1-0"]
[WhiteElo "1993"]
[BlackElo "2001"]
[TimeControl "600+2"]
[EndTime "12:49:49 PDT"]
[Termination "HElissalt won by resignation"]

1. d4 {[%clk 0:09:53.6]} 1... Nf6 {[%clk 0:10:00.3]} 2. c4 {[%clk 0:09:53.1]}
2... c5 {[%clk 0:10:01.2]} 3. d5 {[%clk 0:09:53.9]} 3... b5 {[%clk 0:10:02.1]}
4. e3 {[%clk 0:09:46.2]} 4... bxc4 {[%clk 0:10:01.6]} 5. Bxc4 {[%clk 0:09:45.1]}
5... e6 {[%clk 0:10:02.3]} 6. Nc3 {[%clk 0:09:45.5]} 6... Bb7 {[%clk 0:10:01.2]}
7. Nf3 {[%clk 0:09:43.9]} 7... Na6 {[%clk 0:09:55.4]} 8. O-O {[%clk 0:09:37.9]}
8... Nc7 {[%clk 0:09:22.5]} 9. e4 {[%clk 0:09:35.8]} 9... exd5 {[%clk
0:08:58.3]} 10. exd5 {[%clk 0:09:34.8]} 10... d6 {[%clk 0:08:54.7]} 11. Re1+
{[%clk 0:09:21.5]} 11... Be7 {[%clk 0:08:55.5]} 12. Qd3 {[%clk 0:06:55.7]} 12...
O-O {[%clk 0:08:51.5]} 13. Bg5 {[%clk 0:06:55.9]} 13... Re8 {[%clk 0:08:17]} 14.
Re2 {[%clk 0:06:22.7]} 14... Nfxd5 {[%clk 0:07:32.3]} 15. Nxd5 {[%clk
0:05:34.5]} 15... Nxd5 {[%clk 0:07:11.5]} 16. Bxd5 {[%clk 0:05:25.2]} 1-0

[Event "GrandPrix_29.05"]
[Site "Chess.com"]
[Date "2020.05.29"]
[Round "8"]
[White "payto1"]
[Black "StephenDedalus83"]
[Result "1/2-1/2"]
[WhiteElo "2153"]
[BlackElo "2109"]
[TimeControl "600+2"]
[EndTime "12:49:59 PDT"]
[Termination "Game drawn by repetition"]

1. d4 {[%clk 0:09:55.7]} 1... g6 {[%clk 0:09:57.4]} 2. e4 {[%clk 0:09:54.3]}
2... Bg7 {[%clk 0:09:57.6]} 3. f4 {[%clk 0:09:49.2]} 3... d5 {[%clk 0:09:56.7]}
4. e5 {[%clk 0:09:47.6]} 4... c5 {[%clk 0:09:56.9]} 5. c3 {[%clk 0:09:48.1]}
5... Nc6 {[%clk 0:09:57.5]} 6. h3 {[%clk 0:09:44.7]} 6... h5 {[%clk 0:09:56.9]}
7. Nf3 {[%clk 0:09:45.5]} 7... cxd4 {[%clk 0:09:47.7]} 8. cxd4 {[%clk
0:09:46.4]} 8... Nh6 {[%clk 0:09:49.2]} 9. Bd3 {[%clk 0:09:46]} 9... Bf5 {[%clk
0:09:49.1]} 10. O-O {[%clk 0:09:31.5]} 10... Bxd3 {[%clk 0:09:48.9]} 11. Qxd3
{[%clk 0:09:33.4]} 11... Nf5 {[%clk 0:09:48.5]} 12. Nc3 {[%clk 0:09:34]} 12...
h4 {[%clk 0:09:39.4]} 13. Be3 {[%clk 0:09:32.7]} 13... e6 {[%clk 0:09:39.4]} 14.
Rad1 {[%clk 0:09:21.8]} 14... Qb6 {[%clk 0:09:36.3]} 15. b3 {[%clk 0:09:11.4]}
15... Rc8 {[%clk 0:09:35.3]} 16. Bf2 {[%clk 0:09:07.2]} 16... Bf8 {[%clk
0:09:33.3]} 17. Ne2 {[%clk 0:09:01.3]} 17... Nb4 {[%clk 0:09:32.5]} 18. Qb1
{[%clk 0:09:00.7]} 18... Rc2 {[%clk 0:09:18.6]} 19. Rd2 {[%clk 0:08:23]} 19...
Rxd2 {[%clk 0:09:09.2]} 20. Nxd2 {[%clk 0:08:24.9]} 20... Qa6 {[%clk 0:09:07.6]}
21. Nc1 {[%clk 0:08:03.9]} 21... Bh6 {[%clk 0:09:05]} 22. a3 {[%clk 0:07:46.2]}
22... Qxa3 {[%clk 0:09:03.4]} 23. Nd3 {[%clk 0:07:41.8]} 23... O-O {[%clk
0:08:47.7]} 24. Nf3 {[%clk 0:07:36.5]} 24... Nxd3 {[%clk 0:08:27.6]} 25. Qxd3
{[%clk 0:07:38.4]} 25... Bxf4 {[%clk 0:08:28]} 26. Nxh4 {[%clk 0:07:38.8]} 26...
Rc8 {[%clk 0:08:21.1]} 27. Nxf5 {[%clk 0:07:35.3]} 27... exf5 {[%clk 0:08:16.5]}
28. Qb5 {[%clk 0:07:10.1]} 28... Rc1 {[%clk 0:08:16.6]} 29. g3 {[%clk
0:06:54.9]} 29... Rxf1+ {[%clk 0:08:10.1]} 30. Kxf1 {[%clk 0:06:56.8]} 30...
Qc1+ {[%clk 0:08:01.8]} 31. Kg2 {[%clk 0:06:57.2]} 31... Be3 {[%clk 0:08:02.7]}
32. Qe8+ {[%clk 0:06:34.2]} 32... Kg7 {[%clk 0:07:58.8]} 33. e6 {[%clk
0:06:34.6]} 33... fxe6 {[%clk 0:07:30.5]} 34. Qe7+ {[%clk 0:06:34.8]} 34... Kh6
{[%clk 0:07:31.3]} 35. Qh4+ {[%clk 0:06:34.6]} 35... Kg7 {[%clk 0:07:31.7]} 36.
Qe7+ {[%clk 0:06:35.3]} 36... Kh6 {[%clk 0:07:32.8]} 37. Qh4+ {[%clk 0:06:29.8]}
37... Kg7 {[%clk 0:07:33.6]} 38. Qe7+ {[%clk 0:06:30.7]} 1/2-1/2

[Event "GrandPrix_29.05"]
[Site "Chess.com"]
[Date "2020.05.29"]
[Round "8"]
[White "Kildepiotr"]
[Black "Sunerorlater"]
[Result "0-1"]
[WhiteElo "2083"]
[BlackElo "2248"]
[TimeControl "600+2"]
[EndTime "12:50:20 PDT"]
[Termination "Sunerorlater won by resignation"]

1. Nf3 {[%clk 0:10:01.9]} 1... d5 {[%clk 0:09:59.7]} 2. g3 {[%clk 0:09:55.4]}
2... g6 {[%clk 0:09:59.7]} 3. Bg2 {[%clk 0:09:56.3]} 3... Bg7 {[%clk 0:10:00]}
4. d4 {[%clk 0:09:57.2]} 4... Nf6 {[%clk 0:09:59.9]} 5. O-O {[%clk 0:09:57.8]}
5... O-O {[%clk 0:10:00.3]} 6. c4 {[%clk 0:09:59.1]} 6... dxc4 {[%clk 0:09:58]}
7. Na3 {[%clk 0:09:59.3]} 7... Nc6 {[%clk 0:09:58]} 8. Nxc4 {[%clk 0:09:59.9]}
8... Be6 {[%clk 0:09:58.8]} 9. Nce5 {[%clk 0:10:00.7]} 9... Bd5 {[%clk
0:09:57.2]} 10. Bf4 {[%clk 0:10:01]} 10... a5 {[%clk 0:09:55.3]} 11. Nxc6 {[%clk
0:10:00.5]} 11... Bxc6 {[%clk 0:09:55.5]} 12. Be5 {[%clk 0:10:01.5]} 12... Bd5
{[%clk 0:09:49.7]} 13. a3 {[%clk 0:10:00.6]} 13... c6 {[%clk 0:09:49.2]} 14. Rc1
{[%clk 0:10:00.8]} 14... Qb6 {[%clk 0:09:48]} 15. Qc2 {[%clk 0:09:53.2]} 15...
Be4 {[%clk 0:09:38.9]} 16. Qd2 {[%clk 0:09:49.4]} 16... Bd5 {[%clk 0:09:32.8]}
17. Qc2 {[%clk 0:09:37.5]} 17... Rfe8 {[%clk 0:09:30.8]} 18. Nd2 {[%clk
0:09:36]} 18... Bxg2 {[%clk 0:09:24.5]} 19. Kxg2 {[%clk 0:09:36.8]} 19... Qb5
{[%clk 0:09:18.2]} 20. Nc4 {[%clk 0:09:17.6]} 20... Bh6 {[%clk 0:09:12.4]} 21.
Rcd1 {[%clk 0:09:05.6]} 21... Nd7 {[%clk 0:09:07.1]} 22. g4 {[%clk 0:09:00.4]}
22... Nxe5 {[%clk 0:09:01.4]} 23. Nxe5 {[%clk 0:09:00.7]} 23... Bg7 {[%clk
0:08:54.6]} 24. Nc4 {[%clk 0:08:48.6]} 24... Rad8 {[%clk 0:08:49.2]} 25. e3
{[%clk 0:08:49]} 25... Qd5+ {[%clk 0:08:46.6]} 26. f3 {[%clk 0:08:48.9]} 26...
Qe6 {[%clk 0:08:16.6]} 27. Rfe1 {[%clk 0:08:38.2]} 27... Rd5 {[%clk 0:07:56.6]}
28. a4 {[%clk 0:08:37.2]} 28... h5 {[%clk 0:07:55.7]} 29. h3 {[%clk 0:08:35.9]}
29... c5 {[%clk 0:07:49.3]} 30. dxc5 {[%clk 0:08:29.7]} 30... Rxc5 {[%clk
0:07:50]} 31. b3 {[%clk 0:08:29.3]} 31... b5 {[%clk 0:07:50.7]} 32. axb5 {[%clk
0:08:25.5]} 32... Rxb5 {[%clk 0:07:52.3]} 33. Rd3 {[%clk 0:08:10.4]} 33... a4
{[%clk 0:07:53.1]} 34. Nd2 {[%clk 0:08:06.1]} 34... Rc8 {[%clk 0:07:42.8]} 35.
Qa2 {[%clk 0:08:02.8]} 35... axb3 {[%clk 0:07:42.8]} 36. Rxb3 {[%clk 0:08:02]}
36... Rd8 {[%clk 0:07:20.7]} 37. Reb1 {[%clk 0:07:44.1]} 37... Rxd2+ {[%clk
0:07:14.4]} 38. Qxd2 {[%clk 0:07:44.4]} 38... Rxb3 {[%clk 0:07:15.9]} 39. Rxb3
{[%clk 0:07:42.3]} 39... Qxb3 {[%clk 0:07:16.5]} 40. Qd8+ {[%clk 0:07:43.2]}
40... Bf8 {[%clk 0:07:16.8]} 41. gxh5 {[%clk 0:07:43.1]} 41... gxh5 {[%clk
0:07:15.3]} 42. e4 {[%clk 0:07:43.2]} 42... Qb2+ {[%clk 0:07:01.3]} 43. Kg3
{[%clk 0:07:43.7]} 43... Qg7+ {[%clk 0:06:59.9]} 44. Kf2 {[%clk 0:07:44.4]}
44... Qg5 {[%clk 0:06:59.5]} 45. Qb8 {[%clk 0:07:34.4]} 45... h4 {[%clk
0:06:54.5]} 46. Qc8 {[%clk 0:07:33.3]} 46... e6 {[%clk 0:06:53.7]} 0-1

[Event "GrandPrix_29.05"]
[Site "Chess.com"]
[Date "2020.05.29"]
[Round "8"]
[White "Tokarev_Sergey"]
[Black "Cocolino12"]
[Result "1/2-1/2"]
[WhiteElo "1995"]
[BlackElo "2240"]
[TimeControl "600+2"]
[EndTime "12:50:20 PDT"]
[Termination "Game drawn by repetition"]

1. c4 {[%clk 0:10:01.9]} 1... c6 {[%clk 0:09:59.7]} 2. Nc3 {[%clk 0:10:01.2]}
2... d5 {[%clk 0:10:00.9]} 3. cxd5 {[%clk 0:10:02.6]} 3... cxd5 {[%clk
0:10:02.3]} 4. d4 {[%clk 0:10:03.9]} 4... Nf6 {[%clk 0:10:03.8]} 5. Nf3 {[%clk
0:10:04.3]} 5... Nc6 {[%clk 0:10:05.1]} 6. g3 {[%clk 0:10:05.2]} 6... Bf5 {[%clk
0:10:06.2]} 7. Bg2 {[%clk 0:10:06.1]} 7... e6 {[%clk 0:10:07.4]} 8. O-O {[%clk
0:10:05.6]} 8... Be7 {[%clk 0:10:08.4]} 9. Bf4 {[%clk 0:10:05.5]} 9... O-O
{[%clk 0:10:08.8]} 10. Ne5 {[%clk 0:10:05.9]} 10... Nxe5 {[%clk 0:10:08.4]} 11.
dxe5 {[%clk 0:10:07.8]} 11... Nd7 {[%clk 0:10:08.9]} 12. e4 {[%clk 0:10:08.2]}
12... dxe4 {[%clk 0:10:09.4]} 13. Bxe4 {[%clk 0:10:08.2]} 13... Bxe4 {[%clk
0:10:02.3]} 14. Nxe4 {[%clk 0:10:10.1]} 14... Nb6 {[%clk 0:10:00.8]} 15. Nd6
{[%clk 0:10:09.4]} 15... Bxd6 {[%clk 0:09:57.1]} 16. exd6 {[%clk 0:10:11.3]}
16... Nd5 {[%clk 0:09:57.4]} 17. Qb3 {[%clk 0:10:00.2]} 17... Nxf4 {[%clk
0:09:56.4]} 18. gxf4 {[%clk 0:10:02.1]} 18... Qxd6 {[%clk 0:09:57.3]} 19. Qg3
{[%clk 0:09:55.9]} 19... Rac8 {[%clk 0:09:52.1]} 20. Rad1 {[%clk 0:09:50.3]}
20... Qb6 {[%clk 0:09:44.6]} 21. b3 {[%clk 0:09:48.8]} 21... Rfd8 {[%clk
0:09:43]} 22. Rc1 {[%clk 0:09:43.1]} 22... Qa5 {[%clk 0:09:35.7]} 23. a4 {[%clk
0:09:30.3]} 23... Qf5 {[%clk 0:09:27.1]} 24. Rfd1 {[%clk 0:09:05.9]} 24... Rxc1
{[%clk 0:09:13.7]} 25. Rxc1 {[%clk 0:09:04.6]} 25... h5 {[%clk 0:09:14]} 26. Qg5
{[%clk 0:08:48.2]} 26... Qxg5+ {[%clk 0:09:06]} 27. fxg5 {[%clk 0:08:50.1]}
27... Rd3 {[%clk 0:09:07.2]} 28. Rc8+ {[%clk 0:08:09.7]} 28... Kh7 {[%clk
0:09:07]} 29. Rc7 {[%clk 0:08:11.6]} 29... Rxb3 {[%clk 0:09:06.9]} 30. Rxf7
{[%clk 0:08:12.8]} 30... Kg6 {[%clk 0:09:04.4]} 31. Re7 {[%clk 0:08:14.1]} 31...
Rb4 {[%clk 0:09:04.7]} 32. Rxe6+ {[%clk 0:08:11.8]} 32... Kxg5 {[%clk
0:09:03.7]} 33. Re7 {[%clk 0:08:12.6]} 33... g6 {[%clk 0:09:02.3]} 34. a5 {[%clk
0:08:12.5]} 34... h4 {[%clk 0:09:00.6]} 35. Kg2 {[%clk 0:08:11.8]} 35... Rb3
{[%clk 0:09:01.5]} 36. a6 {[%clk 0:08:07.3]} 36... h3+ {[%clk 0:08:54.4]} 37.
Kf1 {[%clk 0:08:07.9]} 37... bxa6 {[%clk 0:08:47.4]} 38. Rxa7 {[%clk 0:08:07.8]}
38... Rb1+ {[%clk 0:08:48.1]} 39. Ke2 {[%clk 0:08:08.4]} 39... Rh1 {[%clk
0:08:49.2]} 40. Kf3 {[%clk 0:07:51.4]} 40... Ra1 {[%clk 0:08:44.7]} 41. Kg3
{[%clk 0:07:49.6]} 41... Ra3+ {[%clk 0:08:43.4]} 42. f3 {[%clk 0:07:51.1]} 42...
Kf5 {[%clk 0:08:43.8]} 43. Rc7 {[%clk 0:07:33.6]} 43... a5 {[%clk 0:08:40.6]}
44. Rc5+ {[%clk 0:07:34.4]} 44... Kf6 {[%clk 0:08:38.8]} 45. Kxh3 {[%clk
0:07:33.6]} 45... Rxf3+ {[%clk 0:08:37.4]} 46. Kg4 {[%clk 0:07:34.7]} 46... Rf5
{[%clk 0:08:35.7]} 47. Rc6+ {[%clk 0:07:28]} 47... Kg7 {[%clk 0:08:35.9]} 48.
Ra6 {[%clk 0:07:25.8]} 48... Kh6 {[%clk 0:08:35]} 49. h4 {[%clk 0:07:24.2]}
49... Rb5 {[%clk 0:08:36.1]} 50. Ra8 {[%clk 0:07:04]} 50... Rb4+ {[%clk
0:08:36.2]} 51. Kg3 {[%clk 0:07:04.7]} 51... a4 {[%clk 0:08:36.7]} 52. Kh3
{[%clk 0:06:49.7]} 52... Kg7 {[%clk 0:08:26.9]} 53. Ra6 {[%clk 0:06:48.4]} 53...
Kf7 {[%clk 0:08:25.9]} 54. Kg3 {[%clk 0:06:46.7]} 54... Kg7 {[%clk 0:08:26]} 55.
Kh3 {[%clk 0:06:45.8]} 55... Kh6 {[%clk 0:08:26.3]} 56. Ra8 {[%clk 0:06:45.2]}
56... Rd4 {[%clk 0:08:25]} 57. Kg3 {[%clk 0:06:44.1]} 57... Rb4 {[%clk
0:08:25.4]} 58. Kh3 {[%clk 0:06:44.7]} 1/2-1/2